[Event "Turkish Cup 2024"]
[Site "Denizli"]
[Date "2024.08.03"]
[Round "7"]
[White "Turgut, Hakan"]
[Black "Ozcan, Kadir Kutay"]
[Result "1-0"]
[ECO "B80"]
[WhiteElo "2052"]
[BlackElo "1876"]
[Annotator "ChessBase"]
[PlyCount "47"]
[EventDate "2024.08.01"]
[EventType "swiss"]
[EventCountry "TUR"]
[SourceTitle "playchess.com"]
[Source "ChessBase"]
[SourceQuality "1"]
[TimeControl "5400+30"]

1. e4 {[%emt 0:01:00]} c5 {[%emt 0:08:00]} 2. Nc3 {[%emt 0:00:00]} Nc6 {[%emt 0:00:30]} 3. Nge2 {[%emt 0:00:00]} e6 {[%emt 0:01:30]} 4. g3 {[%emt 0:00:00]} Nf6 {[%emt 0:01:30]} 5. Bg2 {[%emt 0:00:00]} Be7 {[%emt 0:00:30]} 6. O-O {[%emt 0:00:30]} O-O {[%emt 0:00:00]} 7. d4 {[%emt 0:01:30]} cxd4 {[%emt 0:02:00]} 8. Nxd4 {[%emt 0:01:30]} d6 {[%emt 0:05:30]} 9. b3 {[%emt 0:09:30]} a6 {[%emt 0:03:30]} 10. Bb2 {[%emt 0:01:30]} Bd7 {[%emt 0:00:30]} 11. Nce2 {[%emt 0:04:30]} Rb8 {[%emt 0:09:30]} 12. c4 {[%emt 0:07:30]} Nxd4 {[%emt 0:05:30]} 13. Nxd4 {[%emt 0:01:30]} b5 {[%emt 0:00:30]} 14. Rc1 {[%emt 0:07:30]} b4 {[%emt 0:05:30]} 15. f4 {[%emt 0:06:30]} Qc7 {[%emt 0:13:30]} 16. Qe2 {[%emt 0:04:30]} Bc8 {[%emt 0:04:30]} 17. g4 {[%emt 0:06:30]} e5 {[%emt 0:13:30]} 18. Nf5 {[%emt 0:00:30]} Bxf5 {[%emt 0:03:30]} 19. exf5 {[%emt 0:01:30]} Nd7 {[%emt 0:00:30]} 20. g5 {[%emt 0:05:30]} exf4 {[%emt 0:04:50]} 21. f6 {[%emt 0:01:30]} gxf6 {[%emt 0:01:35]} 22. Rxf4 {[%emt 0:05:30]} Qd8 {[%emt 0:07:14]} 23. Qh5 {[%emt 0:01:30]} fxg5 {[%emt 0:02:26]} 24. Be4 {[%emt 0:00:30]} 1-0

[Event "Turkish Cup 2024"]
[Site "Denizli"]
[Date "2024.08.03"]
[Round "7"]
[White "Tutuncu, Ali"]
[Black "Cakir, Mert"]
[Result "1-0"]
[ECO "B25"]
[WhiteElo "2041"]
[BlackElo "1990"]
[Annotator "ChessBase"]
[PlyCount "77"]
[EventDate "2024.08.01"]
[EventType "swiss"]
[EventCountry "TUR"]
[SourceTitle "playchess.com"]
[Source "ChessBase"]
[SourceQuality "1"]
[TimeControl "5400+30"]

1. e4 {[%emt 0:01:00]} c5 {[%emt 0:01:00]} 2. Nc3 {[%emt 0:00:30]} Nc6 {[%emt 0:00:30]} 3. g3 {[%emt 0:00:30]} g6 {[%emt 0:00:00]} 4. Bg2 {[%emt 0:00:00]} Bg7 {[%emt 0:00:00]} 5. d3 {[%emt 0:00:00]} d6 {[%emt 0:00:00]} 6. Be3 {[%emt 0:00:00]} Rb8 {[%emt 0:00:00]} 7. Qd2 {[%emt 0:00:00]} e6 {[%emt 0:00:30]} 8. f4 {[%emt 0:00:00]} Nge7 {[%emt 0:00:30]} 9. Nf3 {[%emt 0:00:00]} Nd4 {[%emt 0:00:00]} 10. O-O {[%emt 0:01:30]} O-O {[%emt 0:00:00]} 11. Nd1 {[%emt 0:01:30]} b5 {[%emt 0:03:30]} 12. Qf2 {[%emt 0:02:30]} Nec6 {[%emt 0:04:30]} 13. Ne1 {[%emt 0:02:30]} b4 {[%emt 0:03:30]} 14. c3 {[%emt 0:01:30]} Nb5 {[%emt 0:04:30]} 15. e5 {[%emt 0:00:30]} Bd7 {[%emt 0:01:30]} 16. Rc1 {[%emt 0:23:30]} Qa5 {[%emt 0:06:30]} 17. g4 {[%emt 0:12:30]} bxc3 {[%emt 0:11:30]} 18. bxc3 {[%emt 0:00:30]} Rfc8 {[%emt 0:19:30]} 19. Nf3 {[%emt 0:02:30]} Be8 {[%emt 0:14:30]} 20. Ng5 {[%emt 0:02:30]} dxe5 {[%emt 0:08:55]} 21. f5 {[%emt 0:00:30]} h6 {[%emt 0:06:23]} 22. fxe6 {[%emt 0:00:30]} f6 {[%emt 0:01:05]} 23. Ne4 {[%emt 0:00:30]} Qd8 {[%emt 0:01:44]} 24. Bxc5 {[%emt 0:01:30]} Ne7 {[%emt 0:02:16]} 25. a4 {[%emt 0:02:30]} Nc7 {[%emt 0:00:47]} 26. Nxf6+ {[%emt 0:00:30]} Kh8 {[%emt 0:00:05]} 27. Nxe8 {[%emt 0:02:30]} Qxe8 {[%emt 0:00:06]} 28. Qf7 {[%emt 0:00:30]} Ncd5 {[%emt 0:02:41]} 29. Bxe7 {[%emt 0:08:30]} Nxe7 {[%emt 0:00:10]} 30. Qxe8+ {[%emt 0:02:30]} Rxe8 {[%emt 0:00:05]} 31. c4 {[%emt 0:01:30]} Rbd8 {[%emt 0:03:52]} 32. Be4 {[%emt 0:00:00]} Rd6 {[%emt 0:00:33]} 33. c5 {[%emt 0:01:00]} Rxe6 {[%emt 0:00:30]} 34. c6 {[%emt 0:00:00]} Bf8 {[%emt 0:02:08]} 35. c7 {[%emt 0:01:00]} Kg7 {[%emt 0:00:34]} 36. Ne3 {[%emt 0:01:30]} Nc8 {[%emt 0:00:45]} 37. Bd5 {[%emt 0:00:30]} Rf6 {[%emt 0:00:23]} 38. Rxf6 {[%emt 0:00:30]} Kxf6 {[%emt 0:00:30]} 39. Bc6 {[%emt 0:00:00]} 1-0

[Event "Turkish Cup 2024"]
[Site "Denizli"]
[Date "2024.08.03"]
[Round "7"]
[White "Yilmaz, Kerem Tuna"]
[Black "Bektas, Cagan Erdem"]
[Result "1-0"]
[ECO "B31"]
[WhiteElo "2025"]
[BlackElo "1847"]
[Annotator "ChessBase"]
[PlyCount "59"]
[EventDate "2024.08.01"]
[EventType "swiss"]
[EventCountry "TUR"]
[SourceTitle "playchess.com"]
[Source "ChessBase"]
[SourceQuality "1"]
[TimeControl "5400+30"]

1. e4 {[%emt 0:01:00]} c5 {[%emt 0:01:00]} 2. Nf3 {[%emt 0:00:30]} Nc6 {[%emt 0:00:30]} 3. Bb5 {[%emt 0:00:00]} g6 {[%emt 0:00:00]} 4. Bxc6 {[%emt 0:00:00]} dxc6 {[%emt 0:00:00]} 5. d3 {[%emt 0:00:30]} Bg7 {[%emt 0:00:00]} 6. h3 {[%emt 0:00:30]} b6 {[%emt 0:01:00]} 7. O-O {[%emt 0:04:30]} Qc7 {[%emt 0:01:30]} 8. e5 {[%emt 0:04:30]} Bxe5 {[%emt 0:08:30]} 9. Nxe5 {[%emt 0:01:30]} Qxe5 {[%emt 0:00:00]} 10. Re1 {[%emt 0:00:30]} Qc7 {[%emt 0:02:00]} 11. Qf3 {[%emt 0:04:30]} Be6 {[%emt 0:03:30]} 12. Nc3 {[%emt 0:13:30]} O-O-O {[%emt 0:10:30]} 13. a3 {[%emt 0:09:30]} Qb7 {[%emt 0:40:30]} 14. b4 {[%emt 0:18:30]} c4 {[%emt 0:08:30]} 15. dxc4 {[%emt 0:03:30]} Bxc4 {[%emt 0:06:11]} 16. a4 {[%emt 0:00:00]} Nf6 {[%emt 0:06:46]} 17. a5 {[%emt 0:01:00]} b5 {[%emt 0:03:21]} 18. a6 {[%emt 0:10:30]} Qd7 {[%emt 0:00:01]} 19. Bf4 {[%emt 0:04:30]} Ne8 {[%emt 0:04:36]} 20. Rxe7 {[%emt 0:06:28]} Qxe7 {[%emt 0:01:30]} 21. Qxc6+ {[%emt 0:00:05]} Nc7 {[%emt 0:00:37]} 22. Qb7+ {[%emt 0:00:07]} Kd7 {[%emt 0:00:12]} 23. Bxc7 {[%emt 0:00:03]} Ke8 {[%emt 0:00:40]} 24. Bxd8 {[%emt 0:01:26]} Qxd8 {[%emt 0:00:01]} 25. Rd1 {[%emt 0:00:23]} Qf6 {[%emt 0:00:46]} 26. Qc8+ {[%emt 0:01:27]} Ke7 {[%emt 0:00:30]} 27. Rd7+ {[%emt 0:00:30]} Ke6 {[%emt 0:00:30]} 28. Qc6+ {[%emt 0:00:00]} Kf5 {[%emt 0:00:49]} 29. Qf3+ {[%emt 0:00:00]} Ke5 {[%emt 0:00:24]} 30. Qe4# {[%emt 0:00:00]} 1-0

[Event "Turkish Cup 2024"]
[Site "Denizli"]
[Date "2024.08.03"]
[Round "7"]
[White "Turkmen, Ataberk"]
[Black "Kilic, Cihan"]
[Result "0-1"]
[ECO "B10"]
[WhiteElo "2022"]
[BlackElo "1869"]
[Annotator "ChessBase"]
[PlyCount "90"]
[EventDate "2024.08.01"]
[EventType "swiss"]
[EventCountry "TUR"]
[SourceTitle "playchess.com"]
[Source "ChessBase"]
[SourceQuality "1"]
[TimeControl "5400+30"]

1. e4 {[%emt 0:01:00]} c6 {[%emt 0:01:00]} 2. Bc4 {[%emt 0:00:00]} d5 {[%emt 0:00:30]} 3. Bb3 {[%emt 0:00:00]} dxe4 {[%emt 0:00:30]} 4. Qh5 {[%emt 0:00:30]} g6 {[%emt 0:01:30]} 5. Qh4 {[%emt 0:00:30]} Nd7 {[%emt 0:02:30]} 6. f3 {[%emt 0:08:30]} exf3 {[%emt 0:03:30]} 7. Nxf3 {[%emt 0:00:30]} e6 {[%emt 0:01:30]} 8. Qf2 {[%emt 0:03:30]} Bg7 {[%emt 0:08:30]} 9. d4 {[%emt 0:02:30]} Ne7 {[%emt 0:04:30]} 10. O-O {[%emt 0:00:30]} O-O {[%emt 0:02:30]} 11. Bg5 {[%emt 0:08:30]} Nf6 {[%emt 0:15:30]} 12. Nc3 {[%emt 0:01:30]} h6 {[%emt 0:01:30]} 13. Bd2 {[%emt 0:04:30]} Ned5 {[%emt 0:01:30]} 14. Rae1 {[%emt 0:03:30]} b5 {[%emt 0:12:30]} 15. Ne5 {[%emt 0:07:30]} Qc7 {[%emt 0:03:30]} 16. Nxd5 {[%emt 0:14:30]} Nxd5 {[%emt 0:03:30]} 17. Ng4 {[%emt 0:11:30]} h5 {[%emt 0:05:30]} 18. Ne5 {[%emt 0:02:30]} Bd7 {[%emt 0:07:30]} 19. Bxd5 {[%emt 0:06:30]} exd5 {[%emt 0:01:30]} 20. Bb4 {[%emt 0:00:30]} Bf5 {[%emt 0:00:30]} 21. Bxf8 {[%emt 0:00:30]} Rxf8 {[%emt 0:00:30]} 22. c3 {[%emt 0:07:12]} f6 {[%emt 0:01:30]} 23. Nf3 {[%emt 0:00:49]} Bd3 {[%emt 0:00:30]} 24. Qe3 {[%emt 0:02:47]} Bxf1 {[%emt 0:00:30]} 25. Qe6+ {[%emt 0:00:09]} Rf7 {[%emt 0:02:05]} 26. Kxf1 {[%emt 0:00:15]} Bf8 {[%emt 0:00:36]} 27. Qe8 {[%emt 0:04:10]} Kg7 {[%emt 0:00:40]} 28. Re6 {[%emt 0:00:27]} Bd6 {[%emt 0:02:27]} 29. Nh4 {[%emt 0:02:22]} Bxh2 {[%emt 0:03:33]} 30. Qxc6 {[%emt 0:01:20]} Qf4+ {[%emt 0:00:39]} 31. Nf3 {[%emt 0:00:00]} Bg3 {[%emt 0:01:14]} 32. Ke2 {[%emt 0:03:18]} g5 {[%emt 0:05:47]} 33. Qxd5 {[%emt 0:00:23]} Qc1 {[%emt 0:01:07]} 34. Qb3 {[%emt 0:02:50]} g4 {[%emt 0:01:00]} 35. Nd2 {[%emt 0:00:09]} Qg1 {[%emt 0:00:13]} 36. Qd5 {[%emt 0:00:29]} h4 {[%emt 0:01:01]} 37. Qe4 {[%emt 0:01:00]} Qe1+ {[%emt 0:01:45]} 38. Kd3 {[%emt 0:00:07]} Qxe4+ {[%emt 0:00:42]} 39. Nxe4 {[%emt 0:00:46]} f5 {[%emt 0:01:22]} 40. Nxg3 {[%emt 0:02:45]} hxg3 {[%emt 0:00:02]} 41. Re3 {[%emt 0:00:40]} f4 {[%emt 0:00:30]} 42. Re4 {[%emt 0:00:00]} Kg6 {[%emt 0:00:14]} 43. a4 {[%emt 0:00:14]} Kg5 {[%emt 0:01:44]} 44. Ke2 {[%emt 0:00:46]} f3+ {[%emt 0:00:48]} 45. Kf1 {[%emt 0:00:03]} Rh7 {[%emt 0:00:45]} 0-1

[Event "Turkish Cup 2024"]
[Site "Denizli"]
[Date "2024.08.03"]
[Round "7"]
[White "Manas, Eren"]
[Black "Cakir, Ege"]
[Result "0-1"]
[ECO "B45"]
[WhiteElo "2013"]
[BlackElo "1889"]
[Annotator "ChessBase"]
[PlyCount "120"]
[EventDate "2024.08.01"]
[EventType "swiss"]
[EventCountry "TUR"]
[SourceTitle "playchess.com"]
[Source "ChessBase"]
[SourceQuality "1"]
[TimeControl "5400+30"]

1. e4 {[%emt 0:01:00]} c5 {[%emt 0:01:00]} 2. Nf3 {[%emt 0:00:30]} e6 {[%emt 0:00:00]} 3. d4 {[%emt 0:00:00]} cxd4 {[%emt 0:00:00]} 4. Nxd4 {[%emt 0:00:00]} Nf6 {[%emt 0:00:00]} 5. Nc3 {[%emt 0:00:30]} Nc6 {[%emt 0:00:00]} 6. g3 {[%emt 0:00:30]} Bb4 {[%emt 0:00:30]} 7. Bg2 {[%emt 0:00:30]} O-O {[%emt 0:01:30]} 8. O-O {[%emt 0:00:30]} d6 {[%emt 0:00:30]} 9. Nce2 {[%emt 0:11:30]} e5 {[%emt 0:08:30]} 10. Nb3 {[%emt 0:04:30]} Bc5 {[%emt 0:09:30]} 11. Nc3 {[%emt 0:05:30]} Bg4 {[%emt 0:00:00]} 12. Qd3 {[%emt 0:01:30]} Nb4 {[%emt 0:08:00]} 13. Qd2 {[%emt 0:01:30]} Rc8 {[%emt 0:02:30]} 14. Nxc5 {[%emt 0:05:30]} dxc5 {[%emt 0:02:30]} 15. Nd5 {[%emt 0:00:30]} Nfxd5 {[%emt 0:02:30]} 16. exd5 {[%emt 0:00:30]} Bf5 {[%emt 0:00:30]} 17. Qg5 {[%emt 0:30:30]} Qxg5 {[%emt 0:05:30]} 18. Bxg5 {[%emt 0:00:30]} f6 {[%emt 0:00:30]} 19. Be3 {[%emt 0:04:30]} Nxc2 {[%emt 0:00:30]} 20. Rac1 {[%emt 0:01:30]} b6 {[%emt 0:02:30]} 21. Rfd1 {[%emt 0:03:30]} Rcd8 {[%emt 0:04:30]} 22. Rd2 {[%emt 0:02:30]} Nxe3 {[%emt 0:07:30]} 23. fxe3 {[%emt 0:00:00]} e4 {[%emt 0:02:30]} 24. a3 {[%emt 0:01:00]} Rd6 {[%emt 0:01:30]} 25. Rc4 {[%emt 0:10:38]} Rfd8 {[%emt 0:02:30]} 26. g4 {[%emt 0:02:15]} Bg6 {[%emt 0:02:30]} 27. Bxe4 {[%emt 0:00:25]} Bxe4 {[%emt 0:00:30]} 28. Rxe4 {[%emt 0:00:02]} Rxd5 {[%emt 0:00:30]} 29. Rxd5 {[%emt 0:00:44]} Rxd5 {[%emt 0:00:30]} 30. b4 {[%emt 0:00:00]} Re5 {[%emt 0:03:30]} 31. Rc4 {[%emt 0:09:37]} cxb4 {[%emt 0:01:30]} 32. axb4 {[%emt 0:00:10]} Rxe3 {[%emt 0:00:00]} 33. Rc7 {[%emt 0:00:57]} Re4 {[%emt 0:02:00]} 34. h3 {[%emt 0:00:04]} Rxb4 {[%emt 0:00:30]} 35. Rxa7 {[%emt 0:00:07]} Rb2 {[%emt 0:00:00]} 36. Rb7 {[%emt 0:00:21]} b5 {[%emt 0:04:00]} 37. Kh1 {[%emt 0:00:08]} b4 {[%emt 0:00:00]} 38. Kg1 {[%emt 0:00:45]} b3 {[%emt 0:00:00]} 39. Kh1 {[%emt 0:00:00]} Rb1+ {[%emt 0:00:30]} 40. Kg2 {[%emt 0:00:28]} b2 {[%emt 0:00:30]} 41. h4 {[%emt 0:00:56]} Kf8 {[%emt 0:03:30]} 42. h5 {[%emt 0:00:30]} Ke8 {[%emt 0:00:00]} 43. Kh2 {[%emt 0:00:57]} Kd8 {[%emt 0:00:00]} 44. Kg2 {[%emt 0:00:00]} Kc8 {[%emt 0:00:30]} 45. Rb3 {[%emt 0:00:12]} Kc7 {[%emt 0:00:00]} 46. Kh2 {[%emt 0:00:06]} Kc6 {[%emt 0:00:00]} 47. Kg2 {[%emt 0:00:05]} Kc5 {[%emt 0:00:30]} 48. Kh2 {[%emt 0:00:07]} Kc4 {[%emt 0:00:00]} 49. Rb7 {[%emt 0:00:20]} Kd3 {[%emt 0:00:00]} 50. Rd7+ {[%emt 0:01:33]} Ke3 {[%emt 0:00:30]} 51. Rb7 {[%emt 0:01:26]} Kf3 {[%emt 0:00:30]} 52. Rb4 {[%emt 0:00:47]} h6 {[%emt 0:00:30]} 53. Rb7 {[%emt 0:00:18]} Rf1 {[%emt 0:01:30]} 54. Rxb2 {[%emt 0:02:06]} Rf2+ {[%emt 0:00:30]} 55. Rxf2+ {[%emt 0:00:30]} Kxf2 {[%emt 0:00:30]} 56. Kh3 {[%emt 0:00:00]} Kf3 {[%emt 0:00:30]} 57. Kh4 {[%emt 0:00:11]} Kg2 {[%emt 0:00:00]} 58. g5 {[%emt 0:00:08]} fxg5+ {[%emt 0:00:00]} 59. Kg4 {[%emt 0:00:30]} Kf2 {[%emt 0:00:00]} 60. Kf5 {[%emt 0:00:00]} Kf3 {[%emt 0:00:00]} 0-1

[Event "Turkish Cup 2024"]
[Site "Denizli"]
[Date "2024.08.03"]
[Round "7"]
[White "Akkara, Omer"]
[Black "Kurdas, Halil Ibrahim"]
[Result "1-0"]
[ECO "B40"]
[WhiteElo "1998"]
[BlackElo "1855"]
[Annotator "ChessBase"]
[PlyCount "57"]
[EventDate "2024.08.01"]
[EventType "swiss"]
[EventCountry "TUR"]
[SourceTitle "playchess.com"]
[Source "ChessBase"]
[SourceQuality "1"]
[TimeControl "5400+30"]

1. e4 {[%emt 0:01:00]} c5 {[%emt 0:01:00]} 2. Nf3 {[%emt 0:00:00]} e6 {[%emt 0:00:30]} 3. b3 {[%emt 0:00:00]} Nc6 {[%emt 0:00:30]} 4. Bb2 {[%emt 0:00:00]} Qc7 {[%emt 0:00:30]} 5. c4 {[%emt 0:00:00]} d6 {[%emt 0:00:30]} 6. Nc3 {[%emt 0:01:30]} Nf6 {[%emt 0:00:30]} 7. d4 {[%emt 0:00:00]} cxd4 {[%emt 0:00:00]} 8. Nxd4 {[%emt 0:00:00]} Be7 {[%emt 0:00:00]} 9. Be2 {[%emt 0:00:30]} O-O {[%emt 0:00:30]} 10. O-O {[%emt 0:01:30]} Rd8 {[%emt 0:00:30]} 11. Kh1 {[%emt 0:04:30]} a6 {[%emt 0:04:30]} 12. f4 {[%emt 0:01:30]} e5 {[%emt 0:02:30]} 13. Nc2 {[%emt 0:02:30]} exf4 {[%emt 0:01:30]} 14. Nd5 {[%emt 0:02:30]} Nxd5 {[%emt 0:00:30]} 15. exd5 {[%emt 0:04:30]} Ne5 {[%emt 0:01:30]} 16. Rxf4 {[%emt 0:04:30]} Bg5 {[%emt 0:01:30]} 17. Rf1 {[%emt 0:00:30]} Qe7 {[%emt 0:04:30]} 18. Nd4 {[%emt 0:04:30]} Bd7 {[%emt 0:03:30]} 19. Qc2 {[%emt 0:06:30]} Re8 {[%emt 0:03:30]} 20. Rae1 {[%emt 0:02:30]} Ng4 {[%emt 0:02:30]} 21. Qc3 {[%emt 0:06:30]} Ne3 {[%emt 0:06:30]} 22. Bh5 {[%emt 0:14:30]} Bf6 {[%emt 0:14:30]} 23. Rf3 {[%emt 0:09:30]} Qe5 {[%emt 0:02:30]} 24. Bxf7+ {[%emt 0:12:30]} Kxf7 {[%emt 0:00:30]} 25. Rexe3 {[%emt 0:00:30]} Qg5 {[%emt 0:01:30]} 26. Qe1 {[%emt 0:02:05]} Kg8 {[%emt 0:04:30]} 27. Ne6 {[%emt 0:00:42]} Qh6 {[%emt 0:09:30]} 28. Bxf6 {[%emt 0:02:09]} gxf6 {[%emt 0:00:30]} 29. Rh3 {[%emt 0:00:13]} 1-0

[Event "Turkish Cup 2024"]
[Site "Denizli"]
[Date "2024.08.03"]
[Round "7"]
[White "Akbas, Kaan"]
[Black "Turk, Talha Gunes"]
[Result "1-0"]
[ECO "D11"]
[WhiteElo "1990"]
[BlackElo "1776"]
[Annotator "ChessBase"]
[PlyCount "185"]
[EventDate "2024.08.01"]
[EventType "swiss"]
[EventCountry "TUR"]
[SourceTitle "playchess.com"]
[Source "ChessBase"]
[SourceQuality "1"]
[TimeControl "5400+30"]

1. d4 {[%emt 0:01:00]} Nf6 {[%emt 0:01:00]} 2. Nf3 {[%emt 0:00:00]} d5 {[%emt 0:00:30]} 3. c4 {[%emt 0:00:00]} c6 {[%emt 0:00:30]} 4. e3 {[%emt 0:00:30]} Bg4 {[%emt 0:00:30]} 5. Qb3 {[%emt 0:03:30]} Qb6 {[%emt 0:03:30]} 6. Nc3 {[%emt 0:25:30]} e6 {[%emt 0:03:30]} 7. Ne5 {[%emt 0:04:30]} Bh5 {[%emt 0:02:30]} 8. c5 {[%emt 0:02:30]} Qc7 {[%emt 0:04:30]} 9. Bd3 {[%emt 0:06:30]} Nbd7 {[%emt 0:00:30]} 10. f4 {[%emt 0:00:30]} b6 {[%emt 0:13:30]} 11. cxb6 {[%emt 0:00:30]} axb6 {[%emt 0:00:30]} 12. e4 {[%emt 0:04:30]} Bg6 {[%emt 0:36:30]} 13. f5 {[%emt 0:22:30]} exf5 {[%emt 0:09:30]} 14. Nxd7 {[%emt 0:03:30]} Qxd7 {[%emt 0:01:56]} 15. exd5 {[%emt 0:03:19]} Nxd5 {[%emt 0:00:16]} 16. O-O {[%emt 0:01:10]} Nf6 {[%emt 0:01:43]} 17. Qxb6 {[%emt 0:05:11]} Be7 {[%emt 0:00:45]} 18. Bf4 {[%emt 0:00:29]} O-O {[%emt 0:00:21]} 19. h3 {[%emt 0:00:46]} c5 {[%emt 0:02:35]} 20. Bb5 {[%emt 0:03:25]} Qxd4+ {[%emt 0:02:20]} 21. Kh1 {[%emt 0:00:03]} Ne4 {[%emt 0:00:54]} 22. Nxe4 {[%emt 0:02:48]} fxe4 {[%emt 0:00:30]} 23. Bc6 {[%emt 0:00:05]} Rad8 {[%emt 0:02:03]} 24. Rae1 {[%emt 0:03:17]} Bh4 {[%emt 0:04:43]} 25. Be3 {[%emt 0:01:10]} Qd3 {[%emt 0:01:33]} 26. Bb5 {[%emt 0:01:05]} c4 {[%emt 0:00:11]} 27. Rc1 {[%emt 0:01:12]} Rb8 {[%emt 0:06:43]} 28. Bxc4 {[%emt 0:00:12]} Rxb6 {[%emt 0:00:17]} 29. Bxd3 {[%emt 0:00:06]} Rxb2 {[%emt 0:00:49]} 30. Bc4 {[%emt 0:00:00]} Bf6 {[%emt 0:00:12]} 31. a4 {[%emt 0:01:00]} Ra8 {[%emt 0:00:29]} 32. Bd5 {[%emt 0:00:28]} Rd8 {[%emt 0:00:11]} 33. Bc4 {[%emt 0:01:24]} Rb7 {[%emt 0:01:13]} 34. a5 {[%emt 0:00:12]} Rbd7 {[%emt 0:00:06]} 35. Bb6 {[%emt 0:01:20]} Bg5 {[%emt 0:00:36]} 36. Bxd8 {[%emt 0:01:59]} Rxd8 {[%emt 0:00:16]} 37. Ra1 {[%emt 0:01:29]} e3 {[%emt 0:00:38]} 38. a6 {[%emt 0:00:27]} Bf6 {[%emt 0:00:31]} 39. Rad1 {[%emt 0:01:09]} Rc8 {[%emt 0:00:24]} 40. Bd5 {[%emt 0:00:33]} e2 {[%emt 0:00:29]} 41. a7 {[%emt 0:00:32]} Bd3 {[%emt 0:00:26]} 42. Rfe1 {[%emt 0:00:02]} exd1=Q {[%emt 0:00:57]} 43. Rxd1 {[%emt 0:00:02]} Bf5 {[%emt 0:00:20]} 44. Bb7 {[%emt 0:00:47]} Re8 {[%emt 0:00:14]} 45. Bc6 {[%emt 0:01:07]} Rc8 {[%emt 0:00:30]} 46. Bb7 {[%emt 0:00:30]} Re8 {[%emt 0:00:00]} 47. Rc1 {[%emt 0:00:00]} Bd4 {[%emt 0:00:10]} 48. a8=Q {[%emt 0:00:00]} Rxa8 {[%emt 0:00:30]} 49. Bxa8 {[%emt 0:00:00]} h5 {[%emt 0:00:00]} 50. Bd5 {[%emt 0:00:30]} g5 {[%emt 0:01:41]} 51. Rc7 {[%emt 0:01:57]} Bg6 {[%emt 0:00:07]} 52. g3 {[%emt 0:00:30]} Kg7 {[%emt 0:00:30]} 53. Kg2 {[%emt 0:00:00]} Kf6 {[%emt 0:00:44]} 54. Kf3 {[%emt 0:00:11]} Bb2 {[%emt 0:00:47]} 55. Ra7 {[%emt 0:00:45]} Bd4 {[%emt 0:00:14]} 56. Rb7 {[%emt 0:00:45]} Bc3 {[%emt 0:00:27]} 57. Be4 {[%emt 0:01:13]} g4+ {[%emt 0:00:09]} 58. hxg4 {[%emt 0:00:12]} hxg4+ {[%emt 0:00:30]} 59. Ke3 {[%emt 0:00:00]} Bd2+ {[%emt 0:00:20]} 60. Kd4 {[%emt 0:00:53]} Be1 {[%emt 0:00:41]} 61. Rb6+ {[%emt 0:01:09]} Kg7 {[%emt 0:00:19]} 62. Rb3 {[%emt 0:00:00]} Bf2+ {[%emt 0:00:16]} 63. Ke5 {[%emt 0:00:00]} Be1 {[%emt 0:01:49]} 64. Bxg6 {[%emt 0:00:49]} Kxg6 {[%emt 0:00:44]} 65. Kf4 {[%emt 0:00:05]} Bd2+ {[%emt 0:00:36]} 66. Kxg4 {[%emt 0:00:30]} f6 {[%emt 0:00:00]} 67. Kf3 {[%emt 0:00:00]} Bc1 {[%emt 0:00:21]} 68. Ke4 {[%emt 0:00:21]} Bd2 {[%emt 0:00:57]} 69. Rf3 {[%emt 0:00:15]} Kg5 {[%emt 0:00:07]} 70. Rd3 {[%emt 0:00:58]} Bc1 {[%emt 0:01:09]} 71. Kf3 {[%emt 0:00:01]} Kg6 {[%emt 0:00:21]} 72. Rd5 {[%emt 0:00:30]} Bh6 {[%emt 0:00:00]} 73. Ke4 {[%emt 0:00:00]} Bc1 {[%emt 0:00:07]} 74. Rd8 {[%emt 0:00:25]} Bg5 {[%emt 0:01:04]} 75. Rg8+ {[%emt 0:00:14]} Kf7 {[%emt 0:00:00]} 76. Ra8 {[%emt 0:01:32]} Kg6 {[%emt 0:00:11]} 77. Rc8 {[%emt 0:00:00]} Bd2 {[%emt 0:00:56]} 78. Rg8+ {[%emt 0:00:07]} Kf7 {[%emt 0:00:00]} 79. Rg4 {[%emt 0:00:37]} Ke6 {[%emt 0:00:07]} 80. Rg6 {[%emt 0:00:00]} Bc1 {[%emt 0:00:07]} 81. Rg7 {[%emt 0:00:14]} Bd2 {[%emt 0:02:42]} 82. g4 {[%emt 0:00:12]} Bg5 {[%emt 0:00:08]} 83. Ra7 {[%emt 0:00:06]} Bh4 {[%emt 0:00:17]} 84. Ra6+ {[%emt 0:00:04]} Kf7 {[%emt 0:00:16]} 85. Kf5 {[%emt 0:00:01]} Bg5 {[%emt 0:00:42]} 86. Ra7+ {[%emt 0:00:30]} Kf8 {[%emt 0:00:00]} 87. Kg6 {[%emt 0:00:00]} Bh4 {[%emt 0:00:28]} 88. Rf7+ {[%emt 0:00:00]} Kg8 {[%emt 0:00:18]} 89. Rxf6 {[%emt 0:03:52]} Bxf6 {[%emt 0:00:33]} 90. Kxf6 {[%emt 0:00:30]} Kf8 {[%emt 0:00:00]} 91. g5 {[%emt 0:00:00]} Kg8 {[%emt 0:00:19]} 92. Kg6 {[%emt 0:00:24]} Kh8 {[%emt 0:00:30]} 93. Kf7 {[%emt 0:00:00]} 1-0

[Event "Turkish Cup 2024"]
[Site "Denizli"]
[Date "2024.08.03"]
[Round "7"]
[White "Ekinci, Berkay"]
[Black "Maras, Huseyin Kayra"]
[Result "1/2-1/2"]
[ECO "A06"]
[WhiteElo "1976"]
[BlackElo "1860"]
[Annotator "ChessBase"]
[PlyCount "88"]
[EventDate "2024.08.01"]
[EventType "swiss"]
[EventCountry "TUR"]
[SourceTitle "playchess.com"]
[Source "ChessBase"]
[SourceQuality "1"]
[TimeControl "5400+30"]

1. Nf3 {[%emt 0:01:00]} d5 {[%emt 0:04:00]} 2. e3 {[%emt 0:00:00]} Nf6 {[%emt 0:01:30]} 3. b3 {[%emt 0:00:00]} Bf5 {[%emt 0:00:30]} 4. Bb2 {[%emt 0:00:00]} h6 {[%emt 0:01:30]} 5. c4 {[%emt 0:00:00]} e6 {[%emt 0:00:00]} 6. Nc3 {[%emt 0:00:30]} c6 {[%emt 0:03:00]} 7. d4 {[%emt 0:00:30]} Nbd7 {[%emt 0:04:30]} 8. Bd3 {[%emt 0:00:30]} Bxd3 {[%emt 0:02:30]} 9. Qxd3 {[%emt 0:00:30]} Bb4 {[%emt 0:00:00]} 10. O-O {[%emt 0:02:30]} O-O {[%emt 0:02:00]} 11. Nd2 {[%emt 0:03:30]} c5 {[%emt 0:12:30]} 12. a3 {[%emt 0:10:30]} dxc4 {[%emt 0:08:30]} 13. Nxc4 {[%emt 0:02:30]} Bxc3 {[%emt 0:00:00]} 14. Bxc3 {[%emt 0:01:30]} Nd5 {[%emt 0:02:00]} 15. Bb2 {[%emt 0:03:30]} cxd4 {[%emt 0:18:30]} 16. Qxd4 {[%emt 0:04:30]} Qg5 {[%emt 0:04:30]} 17. f4 {[%emt 0:02:30]} Qf6 {[%emt 0:02:30]} 18. Qd2 {[%emt 0:04:30]} Qg6 {[%emt 0:02:30]} 19. Rf3 {[%emt 0:12:30]} f6 {[%emt 0:07:30]} 20. Nd6 {[%emt 0:07:30]} N5b6 {[%emt 0:03:54]} 21. f5 {[%emt 0:03:30]} exf5 {[%emt 0:00:35]} 22. Nxf5 {[%emt 0:00:00]} Kh8 {[%emt 0:00:09]} 23. Raf1 {[%emt 0:01:00]} Rf7 {[%emt 0:01:31]} 24. Rg3 {[%emt 0:04:30]} Qh7 {[%emt 0:00:45]} 25. a4 {[%emt 0:05:30]} Ne5 {[%emt 0:02:01]} 26. a5 {[%emt 0:06:30]} Rd7 {[%emt 0:00:55]} 27. Qe2 {[%emt 0:01:30]} Nd5 {[%emt 0:00:31]} 28. Bxe5 {[%emt 0:00:30]} fxe5 {[%emt 0:00:12]} 29. Qb2 {[%emt 0:04:46]} Re8 {[%emt 0:00:49]} 30. Qa3 {[%emt 0:03:19]} Nf4 {[%emt 0:02:00]} 31. exf4 {[%emt 0:02:44]} Qxf5 {[%emt 0:00:07]} 32. fxe5 {[%emt 0:00:12]} Qxe5 {[%emt 0:00:22]} 33. Rgf3 {[%emt 0:00:42]} Rd2 {[%emt 0:01:32]} 34. Qc1 {[%emt 0:04:15]} Qd6 {[%emt 0:03:06]} 35. Kh1 {[%emt 0:00:49]} Rd8 {[%emt 0:00:52]} 36. Qc4 {[%emt 0:01:41]} Rd1 {[%emt 0:00:46]} 37. h3 {[%emt 0:01:24]} Rxf1+ {[%emt 0:00:38]} 38. Rxf1 {[%emt 0:00:20]} Rf8 {[%emt 0:01:26]} 39. Rxf8+ {[%emt 0:03:46]} Qxf8 {[%emt 0:00:03]} 40. b4 {[%emt 0:00:24]} Qe7 {[%emt 0:00:14]} 41. Qd4 {[%emt 0:00:27]} a6 {[%emt 0:01:53]} 42. Kg1 {[%emt 0:00:06]} Qe1+ {[%emt 0:00:48]} 43. Kh2 {[%emt 0:00:30]} Qe7 {[%emt 0:00:00]} 44. Kg3 {[%emt 0:00:20]} Qe1+ {[%emt 0:00:00]} 1/2-1/2